Workbook

Sheet 开始
B1: 关于模板
B2: 在此工作簿中创建市场营销预算计划和分类图表。
B3: 在市场营销预算计划工作表中输入类别、数量和成本。自动计算活动成本和估计的市场营销总计。
B4: 簇状柱形图在分类图表工作表中自动更新。
B5: 备注：
B6: “市场营销预算计划”和“分类图表”工作表的 A 列中提供了附加说明。已故意隐藏此文本。若要删除文本，请选择 A 列，然后选择“删除”。若要取消隐藏文本，请选择 A 列，然后更改字体颜色。
B7: 若要了解有关表格的详细信息，请在表格内按 Shift + F10，选择“表格”选项，然后选择“替换文本”。对于数据透视表，请在表格内按 SHIFT+F10，选择“数据透视表”选项，然后选择“替换文本”选项卡。

Sheet 市场营销预算计划
A1: 在此工作表中创建渠道市场营销预算。此列的单元格中显示有关如何使用此工作表的有用说明。请向下移动箭头开始了解。
A2: 此工作簿的标题位于右侧单元格中。 | B2: 市场营销预算计划
A3: 按主要类别筛选数据表格的切片器在单元格 E3 中。 | E3: 按主要类别筛选数据表格的切片器在本单元格中。
A4: 在单元格 D4 中输入与会者人数。 | B4: 与会者人数 | D4: 50
A5: 活动成本在单元格 D5 中自动进行计算。 | B5: 活动成本 | D5: =SUMIF(数据[主要类别],"活动",数据[估计小计]) -> ¥2,500.00
A6: 每个人的活动价格在单元格 D6 中自动进行计算。 | B6: 每个人的活动价格 | D6: =EventCosts/NumberOfAttendees -> ¥50.00
A7: 估计市场营销总计在单元格 D7 中自动进行计算。 | B7: 估计市场营销总计 | D7: =SUMIF(数据[主要类别],"<>活动",数据[估计小计]) -> ¥45,743.00
A8: 小计在单元格 D8 中自动进行计算。下一条说明位于单元格 A10 中。 | B8: 小计 | D8: =SUBTOTAL(109,数据[估计小计]) -> ¥48,243.00
A10: 从右侧单元格开始，在“数据”表中输入详细信息。 | B10: 主要类别 | C10: 次要类别 | D10: 估计数量 | E10: 估计单位成本 | F10: 估计小计 | G10: 备注
B11: 研究 | C11: 调查公司费用 | D11: 2 | E11: ¥2,300.00 | F11: =数据[[#This Row],[估计数量]]*数据[[#This Row],[估计单位成本]] -> ¥4,600.00
B12: 研究 | C12: Web 调查 | D12: 1 | E12: ¥1,100.00 | F12: =数据[[#This Row],[估计数量]]*数据[[#This Row],[估计单位成本]] -> ¥1,100.00
B13: 研究 | C13: 独立调查 | D13: 3 | E13: ¥300.00 | F13: =数据[[#This Row],[估计数量]]*数据[[#This Row],[估计单位成本]] -> ¥900.00
B14: 研究 | C14: 其他调查 | D14: 2 | E14: ¥250.00 | F14: =数据[[#This Row],[估计数量]]*数据[[#This Row],[估计单位成本]] -> ¥500.00
B15: 通信 | C15: 促销小册子 | D15: 5,000 | E15: ¥0.15 | F15: =数据[[#This Row],[估计数量]]*数据[[#This Row],[估计单位成本]] -> ¥750.00
B16: 通信 | C16: 电视 | D16: 5 | E16: ¥4,000.00 | F16: =数据[[#This Row],[估计数量]]*数据[[#This Row],[估计单位成本]] -> ¥20,000.00
B17: 通信 | C17: 电台 | D17: 13 | E17: ¥350.00 | F17: =数据[[#This Row],[估计数量]]*数据[[#This Row],[估计单位成本]] -> ¥4,550.00
B18: 通信 | C18: Web | D18: 1 | E18: ¥350.00 | F18: =数据[[#This Row],[估计数量]]*数据[[#This Row],[估计单位成本]] -> ¥350.00
B19: 网络 | C19: 网络 | F19: =数据[[#This Row],[估计数量]]*数据[[#This Row],[估计单位成本]] -> ¥0.00
B20: 网络 | C20: 成员资格 | D20: 3 | E20: ¥50.00 | F20: =数据[[#This Row],[估计数量]]*数据[[#This Row],[估计单位成本]] -> ¥150.00
B21: 网络 | C21: 隶属关系 | D21: 2 | E21: ¥20.00 | F21: =数据[[#This Row],[估计数量]]*数据[[#This Row],[估计单位成本]] -> ¥40.00
B22: 网络 | C22: 订阅 | D22: 2 | E22: ¥32.00 | F22: =数据[[#This Row],[估计数量]]*数据[[#This Row],[估计单位成本]] -> ¥64.00
B23: 活动 | C23: 与会者人数 | D23: 50 | F23: =数据[[#This Row],[估计数量]]*数据[[#This Row],[估计单位成本]] -> ¥0.00
B24: 活动 | C24: 膳食（早餐、午餐或晚餐） | F24: =数据[[#This Row],[估计数量]]*数据[[#This Row],[估计单位成本]] -> ¥0.00
B25: 活动 | C25: 食品 | E25: ¥23.00 | F25: =数据[[#This Row],[估计数量]]*数据[[#This Row],[估计单位成本]] -> ¥0.00
B26: 活动 | C26: 税费 (10%) | E26: ¥2.30 | F26: =数据[[#This Row],[估计数量]]*数据[[#This Row],[估计单位成本]] -> ¥0.00
B27: 活动 | C27: 食品和饮料小费 (20%) | E27: ¥5.06 | F27: =数据[[#This Row],[估计数量]]*数据[[#This Row],[估计单位成本]] -> ¥0.00
B28: 活动 | C28: 洗熨服务 | D28: 1 | E28: ¥300.00 | F28: =数据[[#This Row],[估计数量]]*数据[[#This Row],[估计单位成本]] -> ¥300.00
B29: 活动 | C29: 娱乐 #1 | D29: 1 | E29: ¥800.00 | F29: =数据[[#This Row],[估计数量]]*数据[[#This Row],[估计单位成本]] -> ¥800.00
B30: 活动 | C30: 娱乐 #2 | D30: 1 | E30: ¥1,200.00 | F30: =数据[[#This Row],[估计数量]]*数据[[#This Row],[估计单位成本]] -> ¥1,200.00
B31: 活动 | C31: 其他服务 | D31: 1 | E31: ¥200.00 | F31: =数据[[#This Row],[估计数量]]*数据[[#This Row],[估计单位成本]] -> ¥200.00
B32: 音频/视频服务 | C32: 基本 PA 系统和指挥 | D32: 1 | E32: ¥0.00 | F32: =数据[[#This Row],[估计数量]]*数据[[#This Row],[估计单位成本]] -> ¥0.00 | G32: 由会场提供（通常）
B33: 音频/视频服务 | C33: 屏幕 | D33: 1 | E33: ¥0.00 | F33: =数据[[#This Row],[估计数量]]*数据[[#This Row],[估计单位成本]] -> ¥0.00 | G33: 由会场提供（通常）
B34: 音频/视频服务 | C34: XGA 数据/视频投影仪租赁 | D34: 1 | E34: ¥45.00 | F34: =数据[[#This Row],[估计数量]]*数据[[#This Row],[估计单位成本]] -> ¥45.00
B35: 音频/视频服务 | C35: 无线鼠标 | D35: 1 | E35: ¥12.00 | F35: =数据[[#This Row],[估计数量]]*数据[[#This Row],[估计单位成本]] -> ¥12.00
B36: 音频/视频服务 | C36: 电源板 | D36: 1 | E36: ¥0.00 | F36: =数据[[#This Row],[估计数量]]*数据[[#This Row],[估计单位成本]] -> ¥0.00 | G36: 由会场提供（通常）
B37: 音频/视频服务 | C37: 延长线 | D37: 1 | E37: ¥0.00 | F37: =数据[[#This Row],[估计数量]]*数据[[#This Row],[估计单位成本]] -> ¥0.00 | G37: 由会场提供（通常）
B38: 音频/视频服务 | C38: 颈式话筒 | D38: 1 | E38: ¥0.00 | F38: =数据[[#This Row],[估计数量]]*数据[[#This Row],[估计单位成本]] -> ¥0.00 | G38: 由会场提供（通常）
B39: 音频/视频服务 | C39: 劳动和弱点技工 | D39: 1 | E39: ¥300.00 | F39: =数据[[#This Row],[估计数量]]*数据[[#This Row],[估计单位成本]] -> ¥300.00
B40: 音频/视频服务 | C40: 税费 (8.8%) | E40: ¥31.42 | F40: =数据[[#This Row],[估计数量]]*数据[[#This Row],[估计单位成本]] -> ¥0.00
B41: 额外成本 | C41: 邀请（打印和邮政成本） | E41: ¥834.00 | F41: =数据[[#This Row],[估计数量]]*数据[[#This Row],[估计单位成本]] -> ¥0.00
B42: 额外成本 | C42: 时间和支出 (T&E) | E42: ¥600.00 | F42: =数据[[#This Row],[估计数量]]*数据[[#This Row],[估计单位成本]] -> ¥0.00
B43: 额外成本 | C43: 公司教职员工 T&E | E43: ¥200.00 | F43: =数据[[#This Row],[估计数量]]*数据[[#This Row],[估计单位成本]] -> ¥0.00 | G43: <现场人员数量>
B44: 额外成本 | C44: 客户评价 T&E | E44: ¥100.00 | F44: =数据[[#This Row],[估计数量]]*数据[[#This Row],[估计单位成本]] -> ¥0.00
B45: 赠奖 | C45: 赠送 #1 | D45: 25 | E45: ¥10.00 | F45: =数据[[#This Row],[估计数量]]*数据[[#This Row],[估计单位成本]] -> ¥250.00 | G45: <赠送项目描述>
B46: 赠奖 | C46: 赠送 #2 | D46: 25 | E46: ¥5.00 | F46: =数据[[#This Row],[估计数量]]*数据[[#This Row],[估计单位成本]] -> ¥125.00 | G46: <赠送项目描述>
B47: 促销活动 | C47: 产品赠送 | D47: 50 | E47: ¥8.00 | F47: =数据[[#This Row],[估计数量]]*数据[[#This Row],[估计单位成本]] -> ¥400.00
B48: 促销活动 | C48: 产品折扣 | D48: 300 | E48: ¥3.00 | F48: =数据[[#This Row],[估计数量]]*数据[[#This Row],[估计单位成本]] -> ¥900.00
B49: 促销活动 | C49: 特别优惠 | D49: 200 | E49: ¥2.50 | F49: =数据[[#This Row],[估计数量]]*数据[[#This Row],[估计单位成本]] -> ¥500.00
B50: 广告 | C50: 小册子（开发和生产） | D50: 5,000 | E50: ¥0.15 | F50: =数据[[#This Row],[估计数量]]*数据[[#This Row],[估计单位成本]] -> ¥750.00
B51: 广告 | C51: 邮件 | D51: 15,000 | E51: ¥0.04 | F51: =数据[[#This Row],[估计数量]]*数据[[#This Row],[估计单位成本]] -> ¥600.00
B52: 广告 | C52: 明信片 | D52: 15,000 | E52: ¥0.03 | F52: =数据[[#This Row],[估计数量]]*数据[[#This Row],[估计单位成本]] -> ¥450.00
B53: 广告 | C53: 电视 | D53: 2 | E53: ¥600.00 | F53: =数据[[#This Row],[估计数量]]*数据[[#This Row],[估计单位成本]] -> ¥1,200.00
B54: 广告 | C54: 电台 | D54: 4 | E54: ¥300.00 | F54: =数据[[#This Row],[估计数量]]*数据[[#This Row],[估计单位成本]] -> ¥1,200.00
B55: 广告 | C55: 报纸 | D55: 6 | E55: ¥220.00 | F55: =数据[[#This Row],[估计数量]]*数据[[#This Row],[估计单位成本]] -> ¥1,320.00
B56: 广告 | C56: 广告牌 | D56: 2 | E56: ¥556.00 | F56: =数据[[#This Row],[估计数量]]*数据[[#This Row],[估计单位成本]] -> ¥1,112.00
B57: 广告 | C57: 公交车身侧面 | D57: 3 | E57: ¥125.00 | F57: =数据[[#This Row],[估计数量]]*数据[[#This Row],[估计单位成本]] -> ¥375.00
B58: 公共关系 | C58: 慈善活动 | D58: 3 | E58: ¥200.00 | F58: =数据[[#This Row],[估计数量]]*数据[[#This Row],[估计单位成本]] -> ¥600.00
B59: 公共关系 | C59: 广告 | D59: 4 | E59: ¥200.00 | F59: =数据[[#This Row],[估计数量]]*数据[[#This Row],[估计单位成本]] -> ¥800.00
B60: 公共关系 | C60: 员工促销活动 | D60: 6 | E60: ¥200.00 | F60: =数据[[#This Row],[估计数量]]*数据[[#This Row],[估计单位成本]] -> ¥1,200.00
B61: 公共关系 | C61: 赞助 | D61: 3 | E61: ¥200.00 | F61: =数据[[#This Row],[估计数量]]*数据[[#This Row],[估计单位成本]] -> ¥600.00

Sheet 分类图表
A1: 数据透视表和 分类图表位于此工作表中。此列的单元格中显示有关如何使用此工作表的有用说明。请向下移动箭头开始了解。
A2: 此工作簿的标题位于右侧单元格中。 | B2: 市场营销预算计划
A4: 显示主要类别及其小计的摘要数据透视图从单元格 C4 开始。下一条指示位于单元格 A8 中。 | C4: 主要类别
C5: 促销活动 | D5: 额外成本 | E5: 公共关系 | F5: 广告 | G5: 活动 | H5: 通信 | I5: 网络 | J5: 研究 | K5: 音频/视频服务 | L5: 赠奖 | M5: Grand Total
B6: 估计小计 | C6: ¥0.00 | D6: ¥7,007.00 | E6: ¥357.00 | F6: ¥25,650.00 | G6: ¥2,500.00 | H6: ¥375.00 | I6: ¥254.00 | J6: ¥1,800.00 | K6: ¥3,200.00 | L6: ¥7,100.00 | M6: ¥48,243.00
A8: 显示主要类别及其估算小计的列数据透视图位于右侧单元格中。 | B8: 显示主要类别及其估算小计的列数据透视图位于本单元格中。
